fUST/lending_fUST_20240321
["ID","MTS","AMOUNT","RATE_DAILY","PERIOD"]
[319767477,1710961833590,-500.0,0.00024787,2]
[319767478,1710961833599,-606.67,0.00024787,2]
[319767479,1710961833608,-3035.66,0.00024787,2]
[319767480,1710961833617,-500.0,0.00024787,2]
[319767481,1710961833626,-850.09,0.00024787,2]
[319767482,1710961833634,-925.44,0.00024787,2]
[319767483,1710961833643,-154.84515485,0.00024787,2]
[319767484,1710961833653,-2353.36,0.00024787,2]
[319767485,1710961833662,-708.12,0.00024787,2]
[319767486,1710961833674,-568.02,0.00024787,2]
[319767487,1710961833683,-500.0,0.00024787,2]
[319767488,1710961833694,-1196.98,0.00024787,2]
[319767489,1710961833703,-500.0,0.00024787,2]
[319767490,1710961833713,-500.0,0.00024787,2]
[319767491,1710961833725,-3670.27,0.00024787,2]
[319767492,1710961833734,-500.0,0.00024787,2]
[319767493,1710961833744,-527.16,0.00024787,2]
[319767494,1710961833753,-500.0,0.00024787,2]
[319767495,1710961833764,-18816.08,0.00024787,2]
[319767496,1710961833774,-1494.52,0.00024787,2]
[319767497,1710961833783,-500.0,0.00024787,2]
[319767498,1710961833792,-8701.38,0.00024787,2]
[319767499,1710961833802,-510.41,0.00024787,2]
[319767500,1710961833815,-500.0,0.00024787,2]
[319767501,1710961833827,-2481.77,0.00024787,2]
[319767502,1710961833836,-2188.72,0.00024788,2]
[319767503,1710961833845,-318.4507792,0.00024788,2]
[319767504,1710961833854,-802.65,0.00024788,2]
[319767505,1710961833865,-653.37,0.00024788,2]
[319767506,1710961833874,-500.0,0.00024788,2]
[319767507,1710961833884,-500.0,0.00024788,2]
[319767508,1710961833893,-500.0,0.00024788,2]
[319767509,1710961833904,-2755.35,0.00024788,2]
[319767510,1710961833913,-500.0,0.00024788,2]
[319767511,1710961833929,-2084.53,0.00024788,2]
[319767512,1710961833939,-500.0,0.00024788,2]
[319767513,1710961833948,-645.12957993,0.00024788,2]
[319767514,1710961833958,-500.0,0.00024788,2]
[319767515,1710961833967,-500.0,0.00024788,2]
[319767516,1710961833977,-1694.5,0.00024788,2]
[319767517,1710961833986,-500.0,0.00024788,2]
[319767518,1710961833996,-535.29,0.00024788,2]
[319767519,1710961834006,-994.24,0.00024788,2]
[319767520,1710961834015,-2083.51,0.00024788,2]
[319767521,1710961834024,-581.11,0.00024788,2]
[319767522,1710961834034,-500.0,0.00024788,2]
[319767523,1710961834043,-1737.41,0.00024788,2]
[319767524,1710961834052,-500.0,0.00024788,2]
[319767525,1710961834061,-500.0,0.00024788,2]
[319767526,1710961834070,-500.0,0.00024788,2]
[319767527,1710961834080,-576.94895919,0.00024789,2]
[319767528,1710961834089,-500.0,0.00024789,2]
[319767529,1710961834098,-716.36,0.00024789,2]
[319767530,1710961834107,-509.55,0.00024789,2]
[319767531,1710961834116,-500.0,0.00024789,2]
[319767532,1710961834126,-500.0,0.00024789,2]
[319767533,1710961834135,-500.0,0.00024789,2]
[319767534,1710961834145,-500.0,0.00024789,2]
[319767535,1710961834154,-500.0,0.00024789,2]
[319767536,1710961834164,-504.23,0.00024789,2]
[319767537,1710961834177,-500.0,0.00024789,2]
[319767538,1710961834186,-500.0,0.00024789,2]
[319767539,1710961834196,-561.67,0.00024789,2]
[319767540,1710961834205,-500.0,0.00024789,2]
[319767541,1710961834215,-1524.38,0.00024789,2]
[319767542,1710961834225,-500.0,0.00024789,2]
[319767543,1710961834234,-500.0,0.00024789,2]
[319767544,1710961834243,-500.0,0.00024789,2]
[319767545,1710961834252,-500.0,0.00024789,2]
[319767546,1710961834262,-500.0,0.00024789,2]
[319767547,1710961834271,-500.0,0.00024789,2]
[319767548,1710961834279,-383.39221297,0.00024789,2]
[319767549,1710961834289,-500.0,0.00024789,2]
[319767550,1710961834298,-500.0,0.00024789,2]
[319767551,1710961834307,-500.0,0.00024789,2]
[319767552,1710961834316,-27940.33,0.00024789,2]
[319767553,1710961834325,-919.35,0.00024789,2]
[319767554,1710961834335,-500.0,0.00024789,2]
[319767555,1710961834344,-500.0,0.00024789,2]
[319767556,1710961834355,-500.0,0.00024789,2]
[319767557,1710961834364,-444.17172385,0.00024789,2]
[319767558,1710961834373,-500.0,0.00024789,2]
[319767559,1710961834383,-500.0,0.00024789,2]
[319767560,1710961834392,-794.05,0.00024789,2]
[319767561,1710961834403,-500.0,0.00024789,2]
[319767562,1710961834413,-500.0,0.00024789,2]
[319767563,1710961834427,-535.86936706,0.0002479,2]
[319767564,1710961834436,-500.0,0.0002479,2]
[319767565,1710961834446,-500.0,0.0002479,2]
[319767566,1710961834455,-500.0,0.0002479,2]
[319767567,1710961834464,-500.0,0.0002479,2]
[319767568,1710961834474,-2000.0,0.00024868,2]
[319767569,1710961834484,-500.0,0.00024891,2]
[319767570,1710961834493,-500.0,0.00024891,2]
[319767571,1710961834503,-500.0,0.00024891,2]
[319767572,1710961834514,-500.0,0.00024891,2]
[319767573,1710961834523,-500.0,0.00024891,2]
[319767574,1710961834532,-500.0,0.00024891,2]
[319767575,1710961834542,-571.58,0.00024891,2]
[319767576,1710961834551,-500.0,0.00024891,2]
[319767577,1710961834560,-500.0,0.00024891,2]
[319767578,1710961834569,-500.0,0.00024891,2]
[319767579,1710961834579,-500.0,0.00024891,2]
[319767580,1710961834589,-500.0,0.00024891,2]
[319767581,1710961834598,-500.0,0.00024891,2]
[319767582,1710961834608,-500.0,0.00024891,2]
[319767583,1710961834617,-500.0,0.00024891,2]
[319767584,1710961834627,-500.0,0.0002506,2]
[319767585,1710961834637,-1432.42,0.0002506,2]
[319767586,1710961834647,-345.32512095,0.00025061,2]
[319767587,1710961834656,-500.0,0.00025061,2]
[319767588,1710961834667,-500.0,0.00025061,2]
[319767589,1710961834677,-500.0,0.00025061,2]
[319767590,1710961834686,-500.0,0.00025061,2]
[319767591,1710961834695,-500.0,0.00025061,2]
[319767592,1710961834705,-500.0,0.00025061,2]
[319767593,1710961834715,-529.5,0.00025061,2]
[319767594,1710961834725,-500.0,0.00025061,2]
[319767595,1710961834734,-500.0,0.00025061,2]
[319767596,1710961834743,-500.0,0.00025061,2]
[319767597,1710961834752,-500.0,0.00025061,2]
[319767598,1710961834763,-500.0,0.00025061,2]
[319767599,1710961834772,-500.0,0.00025061,2]
[319767600,1710961834781,-500.0,0.00025061,2]
[319767601,1710961834791,-481.58,0.00025061,2]
[319767602,1710961834800,-659.16,0.00025061,2]
[319767603,1710961834813,-500.0,0.00025061,2]
[319767604,1710961834823,-500.0,0.00025061,2]
[319767605,1710961834834,-932.37,0.00025061,2]
[319767606,1710961834843,-701.55,0.00025061,2]
[319767607,1710961834853,-500.0,0.00025061,2]
[319767608,1710961834863,-15413.08,0.00025061,2]
[319767609,1710961834872,-1466.71,0.00025061,2]
[319767610,1710961834881,-500.0,0.00025061,2]
[319767611,1710961834892,-3182.37,0.00025061,2]
[319767612,1710961834903,-2158.51,0.00025061,2]
[319767613,1710961834912,-15590.35,0.00025061,2]
[319767614,1710961834924,-500.0,0.00025061,2]
[319767615,1710961834933,-1383.74,0.00025061,2]
[319767616,1710961834941,-500.0,0.00025061,2]
[319767617,1710961834950,-710.49,0.00025061,2]
[319767618,1710961834960,-1816.6,0.00025061,2]
[319767619,1710961834970,-544.03,0.00025061,2]
[319767620,1710961834979,-500.0,0.00025061,2]
[319767621,1710961834988,-606.67,0.00025061,2]
[319767622,1710961834997,-3035.66,0.00025061,2]
[319767623,1710961835006,-850.09,0.00025061,2]
[319767624,1710961835015,-925.44,0.00025061,2]
[319767625,1710961835025,-2353.36,0.00025061,2]
[319767626,1710961835035,-708.12,0.00025061,2]
[319767627,1710961835045,-568.02,0.00025061,2]
[319767628,1710961835054,-500.0,0.00025061,2]
[319767629,1710961835063,-1196.98,0.00025061,2]
[319767630,1710961835072,-500.0,0.00025061,2]
[319767631,1710961835082,-3670.27,0.00025061,2]
[319767632,1710961835091,-343.81882214,0.00025061,2]
[319767633,1710961835101,-527.16,0.00025061,2]
[319767634,1710961835111,-500.0,0.00025061,2]
[319767635,1710961835121,-18816.08,0.00025061,2]
[319767636,1710961835131,-1494.52,0.00025061,2]
[319767637,1710961835140,-500.0,0.00025061,2]
[319767638,1710961835150,-8701.38,0.00025061,2]
[319767639,1710961835160,-510.41,0.00025061,2]
[319767640,1710961835172,-500.0,0.00025061,2]
[319767641,1710961835182,-2481.77,0.00025061,2]
[319767642,1710961835192,-2188.72,0.00025062,2]
[319767643,1710961835202,-802.65,0.00025062,2]
[319767644,1710961835212,-653.37,0.00025062,2]
[319767645,1710961835222,-500.0,0.00025062,2]
[319767646,1710961835231,-500.0,0.00025062,2]
[319767647,1710961835241,-500.0,0.00025062,2]
[319767648,1710961835250,-2755.35,0.00025062,2]
[319767649,1710961835259,-280.79641156,0.00025062,2]
[319767650,1710961835269,-2084.53,0.00025062,2]
[319767651,1710961835278,-500.0,0.00025062,2]
[319767652,1710961835288,-500.0,0.00025062,2]
[319767653,1710961835298,-500.0,0.00025062,2]
[319767654,1710961835309,-1694.5,0.00025062,2]
[319767655,1710961835319,-500.0,0.00025062,2]
[319767656,1710961835329,-535.29,0.00025062,2]
[319767657,1710961835339,-994.24,0.00025062,2]
[319767658,1710961835350,-2083.51,0.00025062,2]
[319767659,1710961835364,-581.11,0.00025062,2]
[319767660,1710961835374,-500.0,0.00025062,2]
[319767661,1710961835390,-1737.41,0.00025062,2]
[319767662,1710961835401,-500.0,0.00025062,2]
[319767663,1710961835413,-500.0,0.00025062,2]
[319767664,1710961835427,-500.0,0.00025062,2]
[319767665,1710961835438,-500.0,0.00025063,2]
[319767666,1710961835448,-716.36,0.00025063,2]
[319767667,1710961835458,-509.55,0.00025063,2]
[319767668,1710961835469,-500.0,0.00025063,2]
[319767669,1710961835479,-500.0,0.00025063,2]
[319767670,1710961835489,-500.0,0.00025063,2]
[319767671,1710961835499,-500.0,0.00025063,2]
[319767672,1710961835509,-500.0,0.00025063,2]
[319767673,1710961835521,-504.23,0.00025063,2]
[319767674,1710961835531,-500.0,0.00025063,2]
[319767675,1710961835642,-299.35177306,0.00025063,2]
[319767676,1710961835652,-561.67,0.00025063,2]
[319767677,1710961835661,-500.0,0.00025063,2]
[319767678,1710961835674,-1524.38,0.00025063,2]
[319767679,1710961835684,-500.0,0.00025063,2]
[319767680,1710961835693,-500.0,0.00025063,2]
[319767681,1710961835703,-500.0,0.00025063,2]
[319767682,1710961835713,-500.0,0.00025063,2]
[319767683,1710961835722,-500.0,0.00025063,2]
[319767684,1710961835732,-500.0,0.00025063,2]
[319767685,1710961835741,-500.0,0.00025063,2]
[319767686,1710961835750,-500.0,0.00025063,2]
[319767687,1710961835759,-177.65425113,0.00025063,2]
[319767688,1710961835770,-27940.33,0.00025063,2]
[319767689,1710961835779,-919.35,0.00025063,2]
[319767690,1710961835789,-500.0,0.00025063,2]
[319767691,1710961835799,-500.0,0.00025063,2]
[319767692,1710961835810,-500.0,0.00025063,2]
[319767693,1710961835820,-500.0,0.00025063,2]
[319767694,1710961835829,-500.0,0.00025063,2]
[319767695,1710961835839,-794.05,0.00025063,2]
[319767696,1710961835848,-500.0,0.00025063,2]
[319767697,1710961835858,-500.0,0.00025063,2]
[319767698,1710961835867,-258.07227172,0.00025064,2]
[319767699,1710961835877,-500.0,0.00025064,2]
[319767700,1710961835887,-500.0,0.00025064,2]
[319767701,1710961835896,-500.0,0.00025064,2]
[319767702,1710961835905,-500.0,0.00025165,2]
[319767703,1710961835915,-500.0,0.00025165,2]
[319767704,1710961835926,-500.0,0.00025165,2]
[319767705,1710961835937,-500.0,0.00025165,2]
[319767706,1710961835947,-500.0,0.00025165,2]
[319767707,1710961835956,-500.0,0.00025165,2]
[319767708,1710961835967,-571.58,0.00025165,2]
[319767709,1710961835977,-225.85869939,0.00025165,2]
[319767710,1710961835987,-500.0,0.00025165,2]
[319767711,1710961835997,-500.0,0.00025165,2]
[319767712,1710961836007,-500.0,0.00025165,2]
[319767713,1710961836017,-500.0,0.00025165,2]
[319767714,1710961836027,-500.0,0.00025165,2]
[319767715,1710961836037,-256.53001868,0.00025165,2]
[319767716,1710961836047,-504.4153708,0.00025165,2]
[319767717,1710961836056,-2639.99332845,0.00025236,2]
[319767718,1710961836067,-617.22297627,0.0002531,2]
[319767719,1710961836077,-7062.90593994,0.00025334,3]
[319767720,1710961836087,-500.0,0.00025334,2]
[319767721,1710961836098,-1432.42,0.00025334,2]
[319767722,1710961836108,-232.31715132,0.00025335,2]
[319767723,1710961836118,-186.99808186,0.00025335,2]
[319767724,1710961836128,-1954.57424788,0.00025335,2]
[319767725,1710961836137,-1537.480344,0.00025335,2]
[319767726,1710961836147,-534.46429513,0.00025335,2]
[319767727,1710961836157,-304.70562123,0.00025335,2]
[319767728,1710961836170,-618.43106565,0.00025335,2]
[319767729,1710961836180,-331.89131947,0.00025335,2]
[319767730,1710961836190,-876.45467613,0.00025335,2]
[319767731,1710961836199,-239.09546587,0.00025335,2]
[319767732,1710961836209,-500.0,0.00025335,2]
[319767733,1710961836219,-500.0,0.00025335,2]
[319767734,1710961836229,-500.0,0.00025335,2]
[319767735,1710961836238,-500.0,0.00025335,2]
[319767736,1710961836248,-500.0,0.00025335,2]
[319767737,1710961836257,-500.0,0.00025335,2]
[319767738,1710961836267,-529.5,0.00025335,2]
[319767739,1710961836277,-500.0,0.00025335,2]
[319767740,1710961836287,-500.0,0.00025335,2]
[319767741,1710961836296,-500.0,0.00025335,2]
[319767742,1710961836305,-500.0,0.00025335,2]
[319767743,1710961836315,-500.0,0.00025335,2]
[319767744,1710961836325,-500.0,0.00025335,2]
[319767745,1710961836334,-659.16,0.00025335,2]
[319767746,1710961836344,-500.0,0.00025335,2]
[319767747,1710961836353,-500.0,0.00025335,2]
[319767748,1710961836362,-932.37,0.00025335,2]
[319767749,1710961836372,-701.55,0.00025335,2]
[319767750,1710961836381,-500.0,0.00025335,2]
[319767751,1710961836391,-15413.08,0.00025335,2]
[319767752,1710961836400,-1466.71,0.00025335,2]
[319767753,1710961836410,-500.0,0.00025335,2]
[319767754,1710961836422,-3182.37,0.00025335,2]
[319767755,1710961836432,-2158.51,0.00025335,2]
[319767756,1710961836441,-15590.35,0.00025335,2]
[319767757,1710961836450,-500.0,0.00025335,2]
[319767758,1710961836459,-1383.74,0.00025335,2]
[319767759,1710961836469,-500.0,0.00025335,2]
[319767760,1710961836479,-710.49,0.00025335,2]
[319767761,1710961836489,-1816.6,0.00025335,2]
[319767762,1710961836498,-544.03,0.00025335,2]
[319767763,1710961836508,-500.0,0.00025335,2]
[319767764,1710961836518,-606.67,0.00025335,2]
[319767765,1710961836528,-3035.66,0.00025335,2]
[319767766,1710961836537,-850.09,0.00025335,2]
[319767767,1710961836547,-925.44,0.00025335,2]
[319767768,1710961836556,-2353.36,0.00025335,2]
[319767769,1710961836566,-708.12,0.00025335,2]
[319767770,1710961836576,-568.02,0.00025335,2]
[319767771,1710961836585,-500.0,0.00025335,2]
[319767772,1710961836595,-1196.98,0.00025335,2]
[319767773,1710961836605,-500.0,0.00025335,2]
[319767774,1710961836615,-3670.27,0.00025335,2]
[319767775,1710961836625,-527.16,0.00025335,2]
[319767776,1710961836634,-500.0,0.00025335,2]
[319767777,1710961836643,-18816.08,0.00025335,2]
[319767778,1710961836653,-1494.52,0.00025335,2]
[319767779,1710961836662,-500.0,0.00025335,2]
[319767780,1710961836673,-8701.38,0.00025335,2]
[319767781,1710961836683,-510.41,0.00025335,2]
[319767782,1710961836692,-500.0,0.00025335,2]
[319767783,1710961836702,-2481.77,0.00025335,2]
[319767784,1710961836711,-540.30807157,0.00025336,2]
[319767785,1710961836721,-469.98746995,0.00025336,2]
[319767786,1710961836730,-779.2579641,0.00025336,2]
[319767787,1710961836739,-225.84733214,0.00025336,2]
[319767788,1710961836749,-2188.72,0.00025336,2]
[319767789,1710961836758,-802.65,0.00025336,2]
[319767790,1710961836770,-653.37,0.00025336,2]
[319767791,1710961836779,-500.0,0.00025336,2]
[319767792,1710961836789,-500.0,0.00025336,2]
[319767793,1710961836800,-500.0,0.00025336,2]
[319767794,1710961836809,-2755.35,0.00025336,2]
[319767795,1710961836819,-2084.53,0.00025336,2]
[319767796,1710961836828,-500.0,0.00025336,2]
[319767797,1710961836838,-500.0,0.00025336,2]
[319767798,1710961836848,-500.0,0.00025336,2]
[319767799,1710961836857,-1694.5,0.00025336,2]
[319767800,1710961836866,-500.0,0.00025336,2]
[319767801,1710961836876,-535.29,0.00025336,2]
[319767802,1710961836885,-994.24,0.00025336,2]
[319767803,1710961836895,-2083.51,0.00025336,2]
[319767804,1710961836904,-581.11,0.00025336,2]
[319767805,1710961836913,-500.0,0.00025336,2]
[319767806,1710961836927,-1737.41,0.00025336,2]
[319767807,1710961836937,-500.0,0.00025336,2]
[319767808,1710961836946,-500.0,0.00025336,2]
[319767809,1710961836956,-500.0,0.00025336,2]
[319767810,1710961836965,-500.0,0.00025337,2]
[319767811,1710961836975,-716.36,0.00025337,2]
[319767812,1710961836985,-509.55,0.00025337,2]
[319767813,1710961836994,-500.0,0.00025337,2]
[319767814,1710961837003,-500.0,0.00025337,2]
[319767815,1710961837013,-500.0,0.00025337,2]
[319767816,1710961837022,-500.0,0.00025337,2]
[319767817,1710961837032,-500.0,0.00025337,2]
[319767818,1710961837042,-504.23,0.00025337,2]
[319767819,1710961837051,-500.0,0.00025337,2]
[319767820,1710961837061,-561.67,0.00025337,2]
[319767821,1710961837071,-500.0,0.00025337,2]
[319767822,1710961837080,-1524.38,0.00025337,2]
[319767823,1710961837089,-500.0,0.00025337,2]
[319767824,1710961837098,-500.0,0.00025337,2]
[319767825,1710961837108,-500.0,0.00025337,2]
[319767826,1710961837117,-500.0,0.00025337,2]
[319767827,1710961837126,-500.0,0.00025337,2]
[319767828,1710961837135,-500.0,0.00025337,2]
[319767829,1710961837145,-500.0,0.00025337,2]
[319767830,1710961837154,-346.84871669,0.00025337,2]
[319767831,1710961837163,-27940.33,0.00025337,2]
[319767832,1710961837176,-919.35,0.00025337,2]
[319767833,1710961837186,-500.0,0.00025337,2]
[319767834,1710961837195,-500.0,0.00025337,2]
[319767835,1710961837204,-500.0,0.00025337,2]
[319767836,1710961837214,-500.0,0.00025337,2]
[319767837,1710961837224,-500.0,0.00025337,2]
[319767838,1710961837233,-794.05,0.00025337,2]
[319767839,1710961837243,-500.0,0.00025337,2]
[319767840,1710961837253,-241.17180371,0.00025337,2]
[319767841,1710961837262,-500.0,0.00025338,2]
[319767842,1710961837271,-600.03027609,0.00025338,2]
[319767843,1710961837282,-500.0,0.00025338,2]
[319767844,1710961837291,-357.45200915,0.00025439,2]
[319767845,1710961837302,-500.0,0.00025439,2]
[319767846,1710961837311,-500.0,0.00025439,2]
[319767847,1710961837320,-500.0,0.00025439,2]
[319767848,1710961837329,-500.0,0.00025439,2]
[319767849,1710961837338,-391.14026737,0.00025439,2]
[319767850,1710961837347,-571.58,0.00025439,2]
[319767851,1710961837357,-500.0,0.00025439,2]
[319767852,1710961837366,-500.0,0.00025439,2]
[319767853,1710961837375,-500.0,0.00025439,2]
[319767854,1710961837384,-616.20462091,0.00025439,2]
[319767855,1710961837395,-500.0,0.00025439,2]
[319767856,1710961837405,-153.0,0.000255,2]
[319767857,1710961837414,-57347.83617931,0.00025511,2]
[319767858,1710961837427,-153.0,0.00025518,2]
[319767859,1710961837436,-153.0,0.00025518,2]
[319767860,1710961837447,-306.0,0.00025519,2]
[319767861,1710961837457,-153.0,0.00025519,2]
[319767862,1710961837466,-153.0,0.00025519,2]
[319767863,1710961837476,-153.0,0.00025519,2]
[319767864,1710961837485,-153.0,0.00025519,2]
[319767865,1710961837494,-153.0,0.00025519,2]
[319767866,1710961837503,-153.0,0.00025519,2]
[319767867,1710961837512,-153.0,0.00025519,2]
[319767868,1710961837522,-306.0,0.00025519,2]
[319767869,1710961837531,-2000.0,0.00025557,2]
[319767870,1710961837541,-153.0,0.00025589,2]
[319767871,1710961837550,-153.0,0.00025589,2]
[319767872,1710961837559,-337.6090244,0.00025589,2]
[319767873,1710961837568,-500.0,0.00025608,2]
[319767875,1710961837577,-1432.42,0.00025608,2]
[319767876,1710961837586,-500.0,0.00025609,2]
[319767878,1710961837595,-500.0,0.00025609,2]
[319767879,1710961837604,-500.0,0.00025609,2]
[319767880,1710961837613,-500.0,0.00025609,2]
[319767881,1710961837622,-500.0,0.00025609,2]
[319767882,1710961837631,-500.0,0.00025609,2]
[319767884,1710961837640,-529.5,0.00025609,2]
[319767886,1710961837649,-500.0,0.00025609,2]
[319767888,1710961837658,-500.0,0.00025609,2]
[319767890,1710961837668,-500.0,0.00025609,2]
[319767892,1710961837679,-500.0,0.00025609,2]
[319767894,1710961837688,-265.07088836,0.00025609,2]
[319767896,1710961837697,-659.16,0.00025609,2]
[319767898,1710961837706,-500.0,0.00025609,2]
[319767899,1710961837715,-500.0,0.00025609,2]
[319767901,1710961837724,-932.37,0.00025609,2]
[319767903,1710961837733,-701.55,0.00025609,2]
[319767905,1710961837742,-500.0,0.00025609,2]
[319767907,1710961837751,-15413.08,0.00025609,2]
[319767909,1710961837760,-1466.71,0.00025609,2]
[319767911,1710961837774,-500.0,0.00025609,2]
[319767914,1710961837783,-3182.37,0.00025609,2]
[319767918,1710961837792,-2158.51,0.00025609,2]
[319767920,1710961837801,-500.0,0.00025609,2]
[319767923,1710961837812,-15590.35,0.00025609,2]
[319767926,1710961837821,-1383.74,0.00025609,2]
[319767929,1710961837831,-500.0,0.00025609,2]
[319767932,1710961837840,-710.49,0.00025609,2]
[319767935,1710961837850,-1816.6,0.00025609,2]
[319767938,1710961837860,-544.03,0.00025609,2]
[319767941,1710961837870,-500.0,0.00025609,2]
[319767944,1710961837879,-606.67,0.00025609,2]
[319767947,1710961837888,-3035.66,0.00025609,2]
[319767950,1710961837897,-850.09,0.00025609,2]
[319767953,1710961837906,-925.44,0.00025609,2]
[319767956,1710961837915,-2353.36,0.00025609,2]
[319767960,1710961837928,-708.12,0.00025609,2]
[319767964,1710961837937,-568.02,0.00025609,2]
[319767968,1710961837946,-500.0,0.00025609,2]
[319767972,1710961837955,-1196.98,0.00025609,2]
[319767974,1710961837964,-500.0,0.00025609,2]
[319767976,1710961837973,-3670.27,0.00025609,2]
[319767978,1710961837982,-527.16,0.00025609,2]
[319767980,1710961837991,-500.0,0.00025609,2]
[319767992,1710961838000,-18816.08,0.00025609,2]
[319767994,1710961838098,-1494.52,0.00025609,2]
[319767996,1710961838107,-266.88768627,0.00025609,2]
[319767998,1710961838116,-8701.38,0.00025609,2]
[319768000,1710961838125,-510.41,0.00025609,2]
[319768002,1710961838135,-500.0,0.00025609,2]
[319768004,1710961838144,-2481.77,0.00025609,2]
[319768006,1710961838154,-2188.72,0.0002561,2]
[319768008,1710961838164,-802.65,0.0002561,2]
[319768010,1710961838178,-653.37,0.0002561,2]
[319768012,1710961838188,-500.0,0.0002561,2]
[319768014,1710961838198,-500.0,0.0002561,2]
[319768016,1710961838207,-500.0,0.0002561,2]
[319768018,1710961838216,-2755.35,0.0002561,2]
[319768020,1710961838225,-2084.53,0.0002561,2]
[319768022,1710961838236,-500.0,0.0002561,2]
[319768024,1710961838245,-500.0,0.0002561,2]
[319768026,1710961838254,-332.81079116,0.0002561,2]
[319768028,1710961838263,-1694.5,0.0002561,2]
[319768031,1710961838273,-500.0,0.0002561,2]
[319768032,1710961838282,-535.29,0.0002561,2]
[319768034,1710961838292,-994.24,0.0002561,2]
[319768037,1710961838301,-2083.51,0.0002561,2]
[319768038,1710961838310,-581.11,0.0002561,2]
[319768041,1710961838319,-500.0,0.0002561,2]
[319768042,1710961838330,-1737.41,0.0002561,2]
[319768044,1710961838339,-500.0,0.0002561,2]
[319768047,1710961838348,-500.0,0.0002561,2]
[319768049,1710961838362,-500.0,0.0002561,2]
[319768051,1710961838371,-500.0,0.00025611,2]
[319768053,1710961838380,-716.36,0.00025611,2]
[319768055,1710961838389,-509.55,0.00025611,2]
[319768056,1710961838399,-500.0,0.00025611,2]
[319768058,1710961838408,-500.0,0.00025611,2]
[319768060,1710961838421,-500.0,0.00025611,2]
[319768062,1710961838430,-500.0,0.00025611,2]
[319768064,1710961838439,-500.0,0.00025611,2]
[319768066,1710961838449,-504.23,0.00025611,2]
[319768069,1710961838458,-500.0,0.00025611,2]
[319768073,1710961838468,-561.67,0.00025611,2]
[319768076,1710961838480,-500.0,0.00025611,2]
[319768078,1710961838490,-1524.38,0.00025611,2]
[319768080,1710961838499,-500.0,0.00025611,2]
[319768081,1710961838508,-500.0,0.00025611,2]
[319768083,1710961838517,-500.0,0.00025611,2]
[319768084,1710961838526,-500.0,0.00025611,2]
[319768085,1710961838536,-500.0,0.00025611,2]
[319768086,1710961838545,-500.0,0.00025611,2]
[319768088,1710961838554,-500.0,0.00025611,2]
[319768090,1710961838564,-27940.33,0.00025611,2]
[319768091,1710961838573,-919.35,0.00025611,2]
[319768092,1710961838582,-500.0,0.00025611,2]
[319768094,1710961838592,-500.0,0.00025611,2]
[319768095,1710961838602,-500.0,0.00025611,2]
[319768097,1710961838611,-500.0,0.00025611,2]
[319768099,1710961838621,-500.0,0.00025611,2]
[319768101,1710961838630,-151.0,0.00025611,2]
[319768103,1710961838640,-794.05,0.00025611,2]